bitfinex-derivatives/quotes_BTCF0:USTF0_20241218
["timestamp","ask_amount","ask_price","bid_price","bid_amount"]
[1734506570953,0.05002498,104170.0,104160.0,0.52002305]
[1734506572057,0.05002498,104170.0,104160.0,0.44926461]
[1734506573561,0.05002498,104170.0,104160.0,0.408807]
[1734506574260,0.12078342,104170.0,104160.0,0.408807]
[1734506574463,0.12078342,104170.0,104160.0,0.28428092]
[1734506574764,0.048007,104160.0,104150.0,1.04455707]
[1734506574954,0.142407,104160.0,104150.0,1.04455707]
[1734506576674,0.142407,104160.0,104150.0,1.03492641]
[1734506578754,0.142407,104160.0,104150.0,0.69309192]
[1734506579257,0.21316544,104160.0,104150.0,0.98691541]
[1734506579563,0.21316544,104160.0,104150.0,0.64508092]
[1734506579758,0.21316544,104160.0,104150.0,0.28428092]
[1734506581659,0.142407,104160.0,104150.0,0.28428092]
[1734506582462,0.22260062,104160.0,104150.0,0.28428092]
[1734506582858,0.58340062,104160.0,104150.0,0.28428092]
[1734506583073,0.048012,104150.0,104140.0,0.28428092]
[1734506586882,0.048012,104150.0,104130.0,0.83039758]
[1734506587071,0.048016,104140.0,104130.0,0.54611666]
[1734506587372,0.048016,104140.0,104130.0,0.84098911]
[1734506587574,0.048016,104140.0,104130.0,0.55625574]
[1734506588271,0.048016,104140.0,104130.0,0.55575574]
[1734506589359,0.048016,104140.0,104130.0,0.55625574]
[1734506590369,0.048016,104140.0,104130.0,0.89759023]
[1734506591170,0.048016,104140.0,104130.0,0.55575574]
[1734506591375,0.048016,104140.0,104130.0,0.55625574]
[1734506591562,0.048016,104140.0,104130.0,0.50823774]
[1734506591761,0.048016,104140.0,104130.0,0.85007223]
[1734506592470,0.048016,104140.0,104130.0,1.12463511]
[1734506593277,0.048016,104140.0,104130.0,1.12513511]
[1734506594367,0.048016,104140.0,104130.0,1.12463511]
[1734506594878,0.048016,104140.0,104130.0,0.71204218]
[1734506595268,0.048016,104140.0,104130.0,0.71254218]
[1734506595972,0.05764476,104140.0,104130.0,0.71254218]
[1734506596269,0.05764476,104140.0,104130.0,0.71204218]
[1734506596872,0.05764476,104140.0,104130.0,0.98877667]
[1734506597089,0.08864476,104140.0,104130.0,0.64694218]
[1734506597275,0.08864476,104140.0,104130.0,0.28664218]
[1734506598276,0.08864476,104140.0,104130.0,0.00144022]
[1734506598474,0.08864476,104140.0,104130.0,0.28614218]
[1734506598682,0.08864476,104140.0,104130.0,0.00144022]
[1734506599276,0.08864476,104140.0,104130.0,0.00194022]
[1734506599474,0.08864476,104140.0,104130.0,0.0005]
[1734506600470,0.08864476,104140.0,104130.0,0.28520196]
[1734506601771,0.1594032,104140.0,104130.0,0.28520196]
[1734506601968,0.1594032,104140.0,104130.0,0.0005]
[1734506602175,0.2224032,104140.0,104130.0,0.0005]
[1734506602370,0.048021,104130.0,104120.0,1.01906175]
[1734506602973,0.048021,104130.0,104120.0,0.73435979]
[1734506603367,0.048021,104130.0,104120.0,0.73485979]
[1734506603981,0.048021,104130.0,104120.0,0.7813345]
[1734506604180,0.09449571,104130.0,104120.0,0.7813345]
[1734506604475,0.048021,104130.0,104120.0,0.7808345]
[1734506605275,0.048021,104130.0,104120.0,0.73485979]
[1734506605476,0.048021,104130.0,104120.0,0.7813345]
[1734506606369,0.048021,104130.0,104120.0,0.7808345]
[1734506607375,0.048021,104130.0,104120.0,0.7813345]
[1734506608385,0.048021,104130.0,104120.0,0.7808345]
[1734506609378,0.048021,104130.0,104120.0,0.7813345]
[1734506609780,0.048021,104130.0,104120.0,0.4205345]
[1734506609986,0.048021,104130.0,104120.0,0.7813345]
[1734506610375,0.048021,104130.0,104120.0,0.7808345]
[1734506611382,0.048021,104130.0,104120.0,0.7813345]
[1734506612383,0.048021,104130.0,104120.0,0.7808345]
[1734506612774,0.09449571,104130.0,104120.0,0.73435979]
[1734506613080,0.09449571,104130.0,104120.0,0.70275979]
[1734506613386,0.09449571,104130.0,104120.0,0.7492345]
[1734506614085,0.09449571,104130.0,104120.0,0.3884345]
[1734506614386,0.45529571,104130.0,104120.0,0.62715661]
[1734506614879,0.45529571,104130.0,104120.0,0.67363132]
[1734506615483,0.45529571,104130.0,104120.0,0.62715661]
[1734506615876,0.45529571,104130.0,104120.0,0.67363132]
[1734506616077,0.45529571,104130.0,104120.0,0.62715661]
[1734506616786,0.45529571,104130.0,104120.0,0.67363132]
[1734506617192,0.45529571,104130.0,104120.0,0.62715661]
[1734506619791,0.45529571,104130.0,104120.0,0.28532212]
[1734506619792,0.54146912,104130.0,104120.0,0.28532212]
[1734506619981,0.45529571,104130.0,104120.0,0.28532212]
[1734506620481,0.54146912,104130.0,104120.0,0.28532212]
[1734506621075,0.54155494,104130.0,104120.0,0.28532212]
[1734506623694,0.56120603,104130.0,104120.0,0.28532212]
[1734506631091,0.67567386,104130.0,104120.0,0.28532212]
[1734506631282,0.67567386,104130.0,104120.0,0.0001253]
[1734506631486,0.67567386,104130.0,104120.0,0.28532212]
[1734506634993,0.67567386,104130.0,104120.0,0.33179683]
[1734506635295,0.04810682,104130.0,104120.0,0.82913203]
[1734506635494,0.13428023,104130.0,104120.0,0.47292283]
[1734506635690,0.04810682,104130.0,104120.0,0.81475732]
[1734506637393,0.04810682,104130.0,104120.0,0.8903605]
[1734506638194,0.04810682,104130.0,104120.0,0.93683521]
[1734506638394,0.04810682,104130.0,104120.0,0.8903605]
[1734506638796,8.582e-05,104130.0,104120.0,0.93683521]
[1734506639399,0.04810682,104130.0,104120.0,0.93683521]
[1734506640495,0.04810682,104130.0,104120.0,0.8903605]
[1734506642799,0.09458153,104130.0,104120.0,0.73295979]
[1734506643005,0.09458153,104130.0,104120.0,0.34195979]
[1734506643191,0.09458153,104130.0,104120.0,0.626904]
[1734506643394,0.18075494,104130.0,104120.0,0.28506951]
[1734506643604,0.54155494,104130.0,104120.0,0.28506951]
[1734506644900,0.65602277,104130.0,104120.0,0.28506951]
[1734506645291,0.13428023,104130.0,104120.0,0.33154422]
[1734506645491,0.13428023,104130.0,104120.0,0.42674422]
[1734506645703,0.18075494,104130.0,104120.0,0.38026951]
[1734506645894,0.18075494,104130.0,104120.0,0.722104]
[1734506647897,0.13428023,104130.0,104120.0,0.76857871]
[1734506648493,0.13428023,104130.0,104120.0,0.42674422]
[1734506648905,0.13428023,104130.0,104120.0,0.38026951]
[1734506649307,0.13428023,104130.0,104120.0,0.42674422]
[1734506651604,0.13428023,104130.0,104120.0,0.38026951]
[1734506653909,0.13428023,104130.0,104120.0,0.42674422]
[1734506654302,0.13428023,104130.0,104120.0,0.14180001]
[1734506655412,0.13428023,104130.0,104120.0,0.55062601]
[1734506655804,0.13428023,104130.0,104120.0,0.8924605]
[1734506656021,8.582e-05,104130.0,104120.0,0.93893521]
[1734506656503,8.582e-05,104130.0,104120.0,0.93908926]
[1734506656709,8.582e-05,104130.0,104120.0,0.59710072]
[1734506658710,0.04810582,104130.0,104120.0,0.59710072]
[1734506660813,0.04810582,104130.0,104120.0,0.93891684]
[1734506661609,0.04810582,104130.0,104120.0,0.94866101]
[1734506672020,0.04810582,104130.0,104120.0,0.85571159]
[1734506672224,0.04810582,104130.0,104120.0,0.89244213]
[1734506673027,0.04810582,104130.0,104120.0,0.55062601]
[1734506673324,0.04810582,104130.0,104120.0,0.93891684]
[1734506673926,0.04810582,104130.0,104120.0,0.59710072]
[1734506674126,0.04810582,104130.0,104120.0,0.89244213]
[1734506675023,0.04810582,104130.0,104120.0,0.93891684]
[1734506675725,0.04810582,104130.0,104120.0,0.59710072]
[1734506675931,0.04810582,104130.0,104120.0,0.69110372]
[1734506676321,0.04810582,104130.0,104120.0,0.64462901]
[1734506676623,0.04810582,104130.0,104120.0,0.69110372]
[1734506676921,0.04810582,104130.0,104120.0,0.89285048]
[1734506678525,0.04810582,104130.0,104120.0,0.85985048]
[1734506679137,0.04810582,104130.0,104120.0,0.79765048]
[1734506679337,0.07930582,104130.0,104120.0,0.79765048]
[1734506679626,0.07930582,104130.0,104120.0,0.89165348]
[1734506680028,0.07930582,104130.0,104120.0,0.74962448]
[1734506680225,0.07930582,104130.0,104120.0,0.34234977]
[1734506680226,0.12578053,104130.0,104120.0,0.34234977]
[1734506680538,0.21195394,104130.0,104120.0,0.34234977]
[1734506680919,0.21195394,104130.0,104120.0,0.62761115]
[1734506681329,0.21195394,104130.0,104120.0,0.0001253]
[1734506682242,0.21195394,104130.0,104120.0,0.28538671]
[1734506683138,0.68722177,104130.0,104120.0,0.28538671]
[1734506683643,0.69708183,104130.0,104120.0,0.28538671]
[1734506683829,0.33628183,104130.0,104120.0,0.28538671]
[1734506684139,0.69708183,104130.0,104120.0,0.28538671]
[1734506686834,0.65060712,104130.0,104120.0,0.28538671]
[1734506687142,0.17533929,104130.0,104120.0,0.04660001]
[1734506687833,0.221814,104130.0,104120.0,0.0001253]
[1734506688236,0.221814,104130.0,104120.0,0.3609253]
[1734506691238,0.14413929,104130.0,104120.0,0.3609253]
[1734506691547,0.04810582,104130.0,104120.0,0.84412319]
[1734506691842,8.582e-05,104130.0,104120.0,0.94162319]
[1734506692344,0.04810582,104130.0,104120.0,0.89514848]
[1734506693427,0.04810582,104130.0,104120.0,0.94162319]
[1734506693638,0.04810582,104130.0,104120.0,0.89514848]
[1734506696947,0.04810582,104130.0,104120.0,0.94162319]
[1734506697139,0.04810582,104130.0,104120.0,0.89514848]
[1734506697442,0.048017,104140.0,104130.0,0.04802]
[1734506697641,0.048017,104140.0,104130.0,0.84382275]
[1734506697943,0.048017,104140.0,104130.0,0.79734804]
[1734506698448,0.0486023,104140.0,104130.0,0.79734804]
[1734506699250,0.0486023,104140.0,104130.0,0.62417927]
[1734506699450,0.0481023,104140.0,104130.0,1.02307768]
[1734506700349,0.0481023,104140.0,104130.0,0.97660297]
[1734506700545,0.0486023,104140.0,104130.0,1.02307768]
[1734506701348,0.0486023,104140.0,104130.0,0.97660297]
[1734506701551,0.0486023,104140.0,104130.0,1.06994575]
[1734506701552,0.0005853,104140.0,104130.0,1.06994575]
[1734506701740,0.0005853,104140.0,104130.0,1.02347104]
[1734506701940,0.0005853,104140.0,104130.0,0.97699633]
[1734506702148,0.40786001,104140.0,104130.0,0.16927792]
[1734506702351,0.50389001,104140.0,104130.0,0.34176562]
[1734506702551,0.50389001,104140.0,104130.0,0.28491891]
[1734506703048,0.55036472,104140.0,104130.0,0.28491891]
[1734506703249,0.50389001,104140.0,104130.0,0.28491891]
[1734506703446,0.54986472,104140.0,104130.0,0.28491891]
[1734506703952,0.54986472,104140.0,104130.0,0.34176562]
[1734506705156,0.54986472,104140.0,104130.0,0.62668804]
[1734506705357,0.54986472,104140.0,104130.0,0.51104354]
[1734506705748,0.98251284,104140.0,104130.0,0.51292572]
[1734506705946,0.9139381,104140.0,104130.0,0.22798653]
[1734506706455,0.6139381,104140.0,104130.0,0.22798653]
[1734506706959,0.54308871,104140.0,104130.0,0.22798653]
[1734506707271,0.6139381,104140.0,104130.0,0.22798653]
[1734506711852,0.62373224,104140.0,104130.0,0.22798653]
[1734506722766,0.62373224,104140.0,104130.0,0.3988297]
[1734506723761,0.98453224,104140.0,104130.0,0.3988297]
[1734506724166,0.98453224,104140.0,104130.0,0.22798653]
[1734506725862,0.98453224,104140.0,104130.0,0.39888073]
[1734506726262,0.98453224,104140.0,104130.0,0.22798653]
[1734506726660,0.98453224,104140.0,104130.0,0.39888548]
[1734506727168,0.98453224,104140.0,104130.0,0.39885521]
[1734506727365,0.98453224,104140.0,104130.0,0.22798653]
[1734506727967,1.00666263,104140.0,104130.0,0.22798653]
[1734506729170,1.12113046,104140.0,104130.0,0.22798653]
[1734506729373,0.39953046,104140.0,104130.0,0.22798653]
[1734506729563,1.12113046,104140.0,104130.0,0.22798653]
[1734506729773,1.03495705,104140.0,104130.0,0.22798653]
[1734506729968,1.12118024,104140.0,104130.0,0.22798653]
[1734506731475,1.03495705,104140.0,104130.0,0.22798653]
[1734506733365,0.048019,104130.0,104120.0,0.28506449]
[1734506733565,0.54164968,104130.0,104120.0,0.45694898]
[1734506733765,0.54164968,104130.0,104120.0,0.17200979]
[1734506734171,0.18084968,104130.0,104120.0,0.28597845]
[1734506734471,0.49515979,104130.0,104120.0,0.17200979]
[1734506734675,0.54164968,104130.0,104120.0,0.17200979]
[1734506735269,0.65611751,104130.0,104120.0,0.17200979]
[1734506737578,0.56977672,104130.0,104120.0,0.17150979]
[1734506737801,0.65617453,104130.0,104120.0,0.34189092]
[1734506740070,0.65617453,104130.0,104120.0,0.0001253]
[1734506740676,0.56977672,104130.0,104120.0,0.17150979]
[1734506740874,0.56977672,104130.0,104120.0,0.0001253]
[1734506741679,0.56977672,104130.0,104120.0,0.17150979]
[1734506742380,0.56977672,104130.0,104120.0,0.17148896]
[1734506742973,0.20897672,104130.0,104120.0,0.17148896]
[1734506743273,0.56977672,104130.0,104120.0,0.34189092]
[1734506744079,0.65618323,104130.0,104120.0,0.34189092]
[1734506744284,0.5417154,104130.0,104120.0,0.51325458]
[1734506746283,0.65618323,104130.0,104120.0,0.51325458]
[1734506746482,0.5417154,104130.0,104120.0,0.51325458]
[1734506747687,0.65618323,104130.0,104120.0,0.51325458]
[1734506747885,0.65618323,104130.0,104120.0,0.34189092]
[1734506748377,0.70267312,104130.0,104120.0,0.34189092]
[1734506748577,0.79299147,104130.0,104120.0,0.28568984]
[1734506748781,0.74650158,104130.0,104120.0,0.28568984]
[1734506748979,0.6216947,104130.0,104120.0,0.4570535]
[1734506749180,0.6216947,104130.0,104120.0,0.62745546]
[1734506749482,0.70808838,104130.0,104120.0,0.62745546]
[1734506749679,0.6216947,104130.0,104120.0,0.4570535]
[1734506749883,0.6216947,104130.0,104120.0,0.28568984]
[1734506750685,0.6216947,104130.0,104120.0,0.4570535]
[1734506751092,0.6216947,104130.0,104120.0,0.28568984]
[1734506752679,0.6216947,104130.0,104120.0,0.4576344]
[1734506756286,0.6216947,104130.0,104120.0,0.28568984]
[1734506756589,1.02619708,104130.0,104100.0,0.53836562]
[1734506756887,1.01765697,104110.0,104100.0,0.44176562]
[1734506757385,0.93559178,104110.0,104100.0,0.1]
[1734506757589,1.05075697,104110.0,104100.0,0.1]
[1734506760389,0.96438308,104110.0,104100.0,0.1]
[1734506760585,0.96438308,104110.0,104100.0,0.1005]
[1734506761692,1.01096453,104110.0,104100.0,0.04828442]
[1734506762190,1.03975583,104110.0,104100.0,0.04828442]
[1734506762389,1.15470467,104110.0,104100.0,0.04828442]
[1734506762585,1.10821478,104110.0,104100.0,0.04878442]
[1734506762784,0.96425829,104110.0,104100.0,0.04878442]
[1734506763585,0.96425829,104110.0,104100.0,0.04828442]
[1734506764292,1.01074818,104110.0,104100.0,0.04828442]
[1734506764592,1.01074818,104110.0,104100.0,0.04878442]
[1734506766479,1.00390419,104110.0,104100.0,0.09527431]
[1734506766686,0.76971956,104110.0,104100.0,0.09527431]
[1734506766886,0.81620945,104110.0,104100.0,0.04878442]
[1734506767393,0.91193907,104110.0,104100.0,0.14588442]
[1734506768489,0.82581017,104110.0,104100.0,0.14588442]
[1734506769683,0.91193907,104110.0,104100.0,0.14588442]
[1734506772493,0.93091583,104110.0,104100.0,0.14588442]
[1734506774596,0.93091583,104110.0,104100.0,0.14538442]
[1734506775495,0.88442594,104110.0,104100.0,0.14538442]
[1734506775705,0.93091583,104110.0,104100.0,0.14538442]
[1734506779497,0.99926448,104110.0,104100.0,0.14538442]
[1734506779699,0.93091583,104110.0,104100.0,0.14538442]
[1734506779905,0.00969228,104110.0,104100.0,0.2863972]
[1734506780098,9.156e-05,104110.0,104100.0,1.28905842]
[1734506781103,9.156e-05,104110.0,104100.0,0.9471972]
[1734506781403,9.156e-05,104110.0,104100.0,1.28936339]
[1734506781806,0.04811956,104110.0,104100.0,1.28936339]
[1734506782002,0.048028,104110.0,104100.0,1.28935839]
[1734506782192,0.048028,104110.0,104100.0,0.9952202]
[1734506782393,0.048028,104110.0,104100.0,1.24281893]
[1734506782908,0.0480992,104110.0,104100.0,1.24281893]
[1734506783309,0.0480992,104110.0,104100.0,0.90070231]
[1734506783509,0.0480992,104110.0,104100.0,1.24278229]
[1734506783707,0.0480992,104110.0,104100.0,1.28927218]
[1734506784100,0.0480992,104110.0,104100.0,0.9471922]
[1734506784509,0.0480992,104110.0,104100.0,1.28920614]
[1734506785210,0.0480992,104110.0,104100.0,1.19622636]
[1734506785411,0.0480992,104110.0,104100.0,1.28920614]
[1734506786603,0.0480992,104110.0,104100.0,1.29892447]
[1734506789003,7.12e-05,104110.0,104100.0,1.29892447]
[1734506790410,7.12e-05,104110.0,104100.0,0.99892447]
[1734506791109,7.12e-05,104110.0,104100.0,1.29892447]
[1734506791316,1e-08,104110.0,104100.0,1.29892447]
[1734506791517,1e-08,104110.0,104100.0,1.34541436]
[1734506791717,1e-08,104110.0,104100.0,1.29892447]
[1734506792106,1e-08,104110.0,104100.0,1.20594469]
[1734506792418,1e-08,104110.0,104100.0,1.29892447]
[1734506794316,1e-08,104110.0,104100.0,1.20594469]
[1734506794616,1e-08,104110.0,104100.0,1.29892447]
[1734506795316,1e-08,104110.0,104100.0,0.95691053]
[1734506796310,1e-08,104110.0,104100.0,1.35574862]
[1734506797418,1e-08,104110.0,104100.0,0.95691053]
[1734506798717,0.04802801,104110.0,104100.0,0.96276884]
[1734506799021,0.04802801,104110.0,104100.0,0.93440382]
[1734506803621,0.04802801,104110.0,104100.0,0.93464987]
[1734506804125,0.08012801,104110.0,104100.0,0.93464987]
[1734506804620,0.11162801,104110.0,104100.0,0.84534165]
[1734506804831,0.11162801,104110.0,104100.0,0.50360231]
[1734506805122,0.14212801,104110.0,104100.0,0.50360231]
[1734506805309,0.14212801,104110.0,104100.0,0.5500922]
[1734506805512,0.14212801,104110.0,104100.0,0.89183154]
[1734506808530,0.14212801,104110.0,104100.0,0.79885176]
[1734506808715,0.14212801,104110.0,104100.0,0.89183154]
[1734506808916,0.14212801,104110.0,104100.0,0.84534165]
[1734506809419,0.14212801,104110.0,104100.0,0.89183154]
[1734506809828,0.14212801,104110.0,104100.0,0.84534165]
[1734506810216,0.1886179,104110.0,104100.0,0.40908442]
[1734506810615,0.1886179,104110.0,104100.0,0.45557431]
[1734506810616,0.14212801,104110.0,104100.0,0.45557431]
[1734506810816,0.14212801,104110.0,104100.0,0.40908442]
[1734506811015,0.14212801,104110.0,104100.0,0.04828442]
[1734506811217,0.14212801,104110.0,104100.0,0.43734685]
[1734506812927,0.14212801,104110.0,104100.0,0.84617985]
[1734506813225,0.1518303,104110.0,104100.0,0.50360731]
[1734506813416,0.1518303,104110.0,104100.0,0.5500972]
[1734506814016,0.1518303,104110.0,104100.0,0.89251318]
[1734506814229,0.1518303,104110.0,104100.0,0.84602329]
[1734506814623,0.1518303,104110.0,104100.0,0.7995334]
[1734506814819,0.1518303,104110.0,104100.0,0.84602329]
[1734506815539,0.14212801,104110.0,104100.0,0.89251318]
[1734506816534,0.14212801,104110.0,104100.0,0.7995334]
[1734506816735,0.14212801,104110.0,104100.0,0.84602329]
[1734506819019,0.14212801,104110.0,104100.0,0.45711742]
[1734506819220,0.14212801,104110.0,104100.0,0.84590058]
[1734506819537,0.14212801,104110.0,104100.0,0.50360731]
[1734506820823,0.14212801,104110.0,104100.0,0.84585291]
[1734506821228,0.14212801,104110.0,104100.0,0.8923428]
[1734506821921,0.14212801,104110.0,104100.0,0.84585291]
[1734506823926,0.14212801,104110.0,104100.0,0.8923428]
[1734506825335,0.11162801,104110.0,104100.0,0.8923428]
[1734506825535,0.11162801,104110.0,104100.0,0.9228428]
[1734506825928,0.08012801,104110.0,104100.0,0.9228428]
[1734506826230,0.04802801,104110.0,104100.0,0.9228428]
[1734506826433,1e-08,104110.0,104100.0,0.5805972]
[1734506826634,1e-08,104110.0,104100.0,1.04283529]
[1734506827432,1e-08,104110.0,104100.0,1.05283529]
[1734506827637,1e-08,104110.0,104100.0,1.14683829]
[1734506827933,0.048526,104120.0,104110.0,0.048028]
[1734506828131,0.048526,104120.0,104110.0,0.80645097]
[1734506828732,0.048026,104120.0,104110.0,0.80645097]
[1734506828931,0.04810734,104120.0,104110.0,0.80645097]
[1734506829441,0.04810734,104120.0,104110.0,0.80645136]
[1734506829633,0.04860734,104120.0,104110.0,0.80645136]
[1734506830533,0.04860734,104120.0,104110.0,0.46388568]
[1734506831638,0.04810734,104120.0,104110.0,0.80646039]
[1734506832336,0.04810734,104120.0,104110.0,0.7978926]
[1734506832539,0.04810734,104120.0,104110.0,0.80645566]
[1734506834633,0.04810734,104120.0,104110.0,0.46388095]
[1734506835034,0.04810734,104120.0,104110.0,0.80642963]
[1734506835228,0.04810734,104120.0,104110.0,0.46388095]
[1734506836849,0.04810734,104120.0,104110.0,0.47351324]
[1734506837050,0.04810734,104120.0,104110.0,0.42702335]
[1734506837342,0.04810734,104120.0,104110.0,0.47351324]
[1734506837936,0.04810734,104120.0,104110.0,0.46495018]
[1734506837937,0.02410195,104120.0,104110.0,0.46495018]
[1734506840643,0.02410195,104120.0,104110.0,0.47495018]
[1734506842246,0.02410195,104120.0,104110.0,0.8171166]
[1734506845745,0.02410195,104120.0,104110.0,0.80748431]
[1734506846346,0.07059184,104120.0,104110.0,0.81766609]
[1734506846647,0.02410195,104120.0,104110.0,0.55932089]
[1734506846845,0.02410195,104120.0,104110.0,0.464803]
[1734506847047,0.07059184,104120.0,104110.0,0.35215233]
[1734506847343,0.11031645,104120.0,104110.0,0.44667022]
[1734506847542,0.02410195,104120.0,104110.0,0.80747022]
[1734506849246,0.11031645,104120.0,104110.0,0.80747022]
[1734506849841,0.02410195,104120.0,104110.0,0.80747022]
[1734506850050,0.11031645,104120.0,104110.0,0.80747022]
[1734506852356,0.11031645,104120.0,104110.0,0.71295233]
[1734506852544,0.11031645,104120.0,104110.0,0.3708]
[1734506852952,0.15680634,104120.0,104110.0,0.3708]
[1734506853853,0.15680634,104120.0,104110.0,0.01]
[1734506854351,0.15680634,104120.0,104110.0,0.29537033]
[1734506855349,0.15680634,104120.0,104110.0,0.01]
[1734506855551,0.15680634,104120.0,104110.0,0.29532715]
[1734506855850,0.15680634,104120.0,104110.0,0.01]
[1734506857152,0.15680634,104120.0,104110.0,0.29527778]
[1734506857449,0.15680634,104120.0,104110.0,0.35215233]
[1734506857756,0.11031645,104120.0,104110.0,0.39864222]
[1734506858151,0.11031645,104120.0,104110.0,0.44667022]
[1734506858566,0.11031645,104120.0,104110.0,0.80747022]
[1734506858756,0.02410195,104120.0,104110.0,0.80747022]
[1734506859649,0.11031645,104120.0,104110.0,0.80747022]
[1734506861753,0.11031645,104120.0,104110.0,0.75944222]
[1734506862956,0.15680634,104120.0,104110.0,0.71295233]
[1734506863852,0.07059184,104120.0,104110.0,0.71295233]
[1734506865056,0.15680634,104120.0,104110.0,0.71295233]
[1734506867755,0.07059184,104120.0,104110.0,0.71295233]
[1734506868058,0.02410195,104120.0,104110.0,0.71295233]
[1734506868854,0.02410195,104120.0,104110.0,0.35215233]
[1734506869159,0.11031645,104120.0,104110.0,0.39864222]
[1734506869551,0.11031645,104120.0,104110.0,0.35215233]
[1734506869953,0.11031645,104120.0,104110.0,0.01]
[1734506870153,0.11031645,104120.0,104110.0,0.35215233]
[1734506870659,0.11031645,104120.0,104110.0,0.39864222]
[1734506870861,0.11031645,104120.0,104110.0,0.75944222]
[1734506872952,0.11031645,104120.0,104110.0,0.39864222]
[1734506873759,0.11031645,104120.0,104110.0,0.05648989]
[1734506873950,0.11031645,104120.0,104110.0,0.39864222]
[1734506875861,0.11031645,104120.0,104110.0,0.80747022]
[1734506879267,8.134e-05,104120.0,104110.0,0.51180778]
[1734506879771,0.04810534,104120.0,104110.0,0.51180778]
[1734506879963,0.04810534,104120.0,104110.0,0.91064587]
[1734506880171,0.04810534,104120.0,104110.0,1.46945918]
[1734506880469,8.134e-05,104120.0,104110.0,1.46945918]
[1734506880654,8.134e-05,104120.0,104110.0,1.49412661]
[1734506880855,8.134e-05,104120.0,104110.0,1.46945918]
[1734506881258,8.134e-05,104120.0,104110.0,1.09528852]
[1734506881458,8.134e-05,104120.0,104110.0,1.5040333]
[1734506881667,8.134e-05,104120.0,104110.0,1.45754341]
[1734506881970,8.134e-05,104120.0,104110.0,1.5040333]
[1734506882265,8.134e-05,104120.0,104110.0,1.47936587]
[1734506883063,8.134e-05,104120.0,104110.0,1.47037052]
[1734506883270,8.134e-05,104120.0,104110.0,1.01455556]
[1734506884165,8.134e-05,104120.0,104110.0,0.61543137]
[1734506884473,8.134e-05,104120.0,104110.0,0.52142837]
[1734506884970,8.134e-05,104120.0,104110.0,0.47493848]
[1734506885266,8.134e-05,104120.0,104110.0,0.92055256]
[1734506885661,8.134e-05,104120.0,104110.0,1.01455556]
[1734506886174,0.04810534,104120.0,104110.0,0.96806567]
[1734506887868,0.04810534,104120.0,104110.0,0.91080237]
[1734506888263,0.04810534,104120.0,104110.0,0.81679937]
[1734506889171,0.04810534,104120.0,104110.0,0.80717878]
[1734506892072,0.50188512,104120.0,104110.0,0.35186089]
[1734506892270,0.62119962,104120.0,104110.0,0.29506194]
[1734506892569,0.62119962,104120.0,104110.0,0.52311394]
[1734506892777,0.74578994,104120.0,104110.0,0.238052]
[1734506895665,0.69930005,104120.0,104110.0,0.238052]
[1734506895868,0.74578994,104120.0,104110.0,0.238052]
[1734506896375,0.6309514,104120.0,104110.0,0.238052]
[1734506896681,0.74578994,104120.0,104110.0,0.238052]
[1734506898180,0.6309514,104120.0,104110.0,0.238052]
[1734506898977,0.69930005,104120.0,104110.0,0.238052]
[1734506900077,0.6309514,104120.0,104110.0,0.238052]
[1734506903278,0.6309514,104120.0,104110.0,0.01]
[1734506903681,0.6309514,104120.0,104110.0,0.238052]
[1734506905276,0.74578994,104120.0,104110.0,0.01]
[1734506905779,0.76540924,104120.0,104110.0,0.01]
[1734506907181,0.6505707,104120.0,104110.0,0.01]
[1734506909974,0.048028,104110.0,104100.0,0.56139836]
[1734506910182,0.51791789,104110.0,104100.0,0.56139836]
[1734506910777,0.51791789,104110.0,104100.0,0.27683642]
[1734506912493,0.51791789,104110.0,104100.0,0.56189836]
[1734506913080,0.51791789,104110.0,104100.0,0.27683642]
[1734506913280,0.51791789,104110.0,104100.0,0.56189836]
[1734506913480,0.471428,104110.0,104100.0,0.60838825]
[1734506914792,0.471428,104110.0,104100.0,0.60788825]
[1734506915388,0.439028,104110.0,104100.0,0.60788825]
[1734506915795,0.408828,104110.0,104100.0,0.60788825]
[1734506916092,0.408828,104110.0,104100.0,0.63968825]
[1734506916291,0.408828,104110.0,104100.0,0.41163625]
[1734506919304,0.4950425,104110.0,104100.0,0.50615914]
[1734506919498,0.4950425,104110.0,104100.0,0.56885914]
[1734506920404,0.4950425,104110.0,104100.0,0.86423014]
[1734506920603,0.408828,104110.0,104100.0,0.5791682]
[1734506921308,0.4950425,104110.0,104100.0,0.5791682]
[1734506922705,0.4950425,104110.0,104100.0,0.62565809]
[1734506922909,0.4950425,104110.0,104100.0,0.5791682]
[1734506924906,0.1342425,104110.0,104100.0,0.62565809]
[1734506925810,0.1342425,104110.0,104100.0,0.5791682]
[1734506926605,0.1342425,104110.0,104100.0,0.62565809]
[1734506927214,0.1342425,104110.0,104100.0,0.5791682]
[1734506928108,0.1342425,104110.0,104100.0,0.6731712]
[1734506929113,0.1342425,104110.0,104100.0,0.33131031]
[1734506929318,0.048028,104110.0,104100.0,0.7386002]
[1734506929704,0.048028,104110.0,104100.0,0.69211031]
[1734506930502,0.1342425,104110.0,104100.0,1.03426708]
[1734506930706,0.1342425,104110.0,104100.0,0.94026408]
[1734506939720,0.048028,104110.0,104100.0,0.87756408]
[1734506940421,0.048028,104110.0,104100.0,0.83107419]
[1734506940821,0.048028,104110.0,104100.0,0.87756408]
[1734506942021,0.048028,104110.0,104100.0,0.5818972]
[1734506942228,0.048028,104110.0,104100.0,0.6759002]
[1734506942519,0.1342425,104110.0,104100.0,0.92389464]
[1734506942725,0.1342425,104110.0,104100.0,0.87740475]
[1734506948125,0.048028,104110.0,104100.0,0.87740475]
[1734506951522,0.048028,104110.0,104100.0,0.53540731]
[1734506958930,0.1342425,104110.0,104100.0,0.8777061]
[1734506961531,0.1342425,104110.0,104100.0,0.83121621]
[1734506961737,0.1342425,104110.0,104100.0,0.8777061]
[1734506966029,0.1342425,104110.0,104100.0,0.53540731]
[1734506967039,0.1342425,104110.0,104100.0,0.5818972]
[1734506969931,0.048028,104110.0,104100.0,0.5818972]
[1734506971234,0.048028,104110.0,104100.0,0.59134972]
[1734506973746,0.19951984,104120.0,104110.0,0.048028]
[1734506973943,0.07960534,104120.0,104110.0,0.54932089]
[1734506974147,0.07960534,104120.0,104110.0,0.94844508]
[1734506974341,0.07960534,104120.0,104110.0,0.54932089]
[1734506974646,0.07960534,104120.0,104110.0,0.94844508]
[1734506975434,0.07960534,104120.0,104110.0,0.54932089]
[1734506976642,0.07960534,104120.0,104110.0,0.8912496]
[1734506976944,0.07960534,104120.0,104110.0,0.7972466]
[1734506977748,0.04810534,104120.0,104110.0,0.84373649]
[1734506978149,0.04810534,104120.0,104110.0,0.50180778]
[1734506978357,0.04810534,104120.0,104110.0,0.45531789]
[1734506979248,0.04810534,104120.0,104110.0,0.79709631]
[1734506981754,0.04810534,104120.0,104110.0,0.8435862]
[1734506982268,0.04810534,104120.0,104110.0,0.79709631]
[1734506982650,0.04810534,104120.0,104110.0,0.8435862]
[1734506982861,0.04810534,104120.0,104110.0,0.79709631]
[1734506985166,0.07920534,104120.0,104110.0,0.79709631]
[1734506987562,0.07920534,104120.0,104110.0,0.43629631]
[1734506987866,0.07920534,104120.0,104110.0,0.79709631]